[Event "Manhemjunioren 2024"]
[Site "Goteborgs Schackcentrum, Vegatan 20, Gothenburg, Sweden"]
[Date "2024.04.06"]
[Round "3.4"]
[White "Havner, Arvid"]
[Black "Madevan Vaishnavi, Yaashvan"]
[Result "1-0"]
[TimeControl "18 minutes + 10 seconds per move from move one."]
[WhiteFideId "1769308"]
[BlackFideId "1772180"]
[WhiteElo "1782"]
[BlackElo "1670"]

1. e4 {[%clk 00:18:19]} {[%emt 00:00:01]} c5 {[%clk 00:18:19]} 2. Nf3 {[%clk
00:18:28]} {[%emt 00:00:02]} g6 {[%clk 00:18:28]} {[%emt 00:00:02]} 3. d4
{[%clk 00:18:31]} {[%emt 00:00:06]} cxd4 {[%emt 00:00:01]} 4. Nxd4 Nc6 {[%clk
00:18:35]} {[%emt 00:00:02]} 5. Nc3 {[%clk 00:18:32]} {[%emt 00:00:09]} Bg7
{[%clk 00:18:43]} {[%emt 00:00:02]} 6. Be3 {[%clk 00:18:41]} {[%emt 00:00:01]}
Nf6 {[%clk 00:18:52]} {[%emt 00:00:01]} 7. f3 {[%clk 00:18:43]} {[%emt
00:00:08]} O-O {[%clk 00:19:00]} {[%emt 00:00:03]} 8. Bc4 {[%clk 00:18:43]}
{[%emt 00:00:10]} d6 {[%clk 00:19:06]} {[%emt 00:00:04]} 9. Qd2 {[%clk
00:18:46]} {[%emt 00:00:06]} Nxd4 {[%clk 00:19:13]} {[%emt 00:00:03]} 10. Bxd4
{[%clk 00:18:54]} {[%emt 00:00:01]} Bd7 {[%clk 00:18:51]} {[%emt 00:00:33]} 11.
O-O-O {[%clk 00:19:01]} {[%emt 00:00:02]} Rc8 {[%clk 00:18:56]} {[%emt
00:00:06]} 12. Bb3 {[%clk 00:19:10]} {[%emt 00:00:01]} b5 {[%clk 00:19:04]}
{[%emt 00:00:03]} 13. h4 {[%clk 00:19:10]} {[%emt 00:00:09]} b4 {[%clk
00:19:11]} {[%emt 00:00:04]} 14. Nd5 {[%clk 00:19:16]} {[%emt 00:00:05]} a5
{[%clk 00:18:57]} {[%emt 00:00:24]} 15. Nxf6+ {[%clk 00:18:35]} {[%emt
00:00:51]} exf6 {[%clk 00:18:53]} {[%emt 00:00:14]} 16. h5 {[%clk 00:17:15]}
{[%emt 00:01:29]} a4 {[%clk 00:18:34]} {[%emt 00:00:29]} 17. Bd5 {[%clk
00:17:23]} {[%emt 00:00:01]} a3 {[%clk 00:18:08]} {[%emt 00:00:37]} 18. hxg6
{[%clk 00:16:31]} {[%emt 00:01:01]} axb2+ {[%clk 00:18:11]} {[%emt 00:00:07]}
19. Kb1 {[%clk 00:16:40]} hxg6 {[%clk 00:18:17]} {[%emt 00:00:05]} 20. g4
{[%clk 00:15:08]} {[%emt 00:01:42]} Ba4 {[%clk 00:18:00]} {[%emt 00:00:27]} 21.
Bb3 {[%clk 00:14:41]} {[%emt 00:00:37]} Bxb3 {[%clk 00:17:57]} {[%emt
00:00:14]} 22. axb3 {[%clk 00:14:46]} {[%emt 00:00:05]} Qa5 {[%clk 00:17:09]}
{[%emt 00:00:57]} 23. Bxb2 {[%clk 00:14:37]} {[%emt 00:00:20]} Rc6 {[%clk
00:16:55]} {[%emt 00:00:24]} 24. Qd5 {[%clk 00:12:02]} {[%emt 00:02:45]} Qxd5
{[%clk 00:16:07]} {[%emt 00:00:58]} 25. Rxd5 {[%clk 00:11:58]} {[%emt
00:00:14]} Rfc8 {[%clk 00:16:15]} {[%emt 00:00:02]} 26. Rh2 {[%clk 00:12:07]}
Kf8 {[%clk 00:15:23]} {[%emt 00:01:03]} 27. Rhd2 {[%clk 00:12:13]} {[%emt
00:00:05]} Bh6 {[%clk 00:15:16]} {[%emt 00:00:17]} 28. Rh2 {[%clk 00:11:37]}
{[%emt 00:00:39]} Bf4 {[%clk 00:15:09]} {[%emt 00:00:24]} 29. Rh8+ {[%clk
00:11:35]} {[%emt 00:00:12]} Ke7 {[%clk 00:15:17]} {[%emt 00:00:02]} 30. Rxc8
{[%clk 00:11:43]} {[%emt 00:00:03]} Rxc8 {[%clk 00:15:25]} {[%emt 00:00:01]} 31.
Rb5 {[%clk 00:11:34]} {[%emt 00:00:19]} Bd2 {[%clk 00:15:33]} {[%emt 00:00:02]}
32. Bd4 {[%clk 00:10:54]} {[%emt 00:00:49]} Rh8 {[%clk 00:15:17]} {[%emt
00:00:26]} 33. g5 {[%clk 00:09:33]} {[%emt 00:01:32]} Rh1+ {[%clk 00:15:09]}
{[%emt 00:00:18]} 34. Kb2 {[%clk 00:09:42]} fxg5 {[%clk 00:15:11]} {[%emt
00:00:08]} 35. Rd5 {[%clk 00:09:22]} {[%emt 00:00:30]} Bc1+ {[%clk 00:11:50]}
{[%emt 00:03:30]} 36. Ka2 {[%clk 00:08:29]} {[%emt 00:01:04]} Rf1 {[%clk
00:11:52]} {[%emt 00:00:08]} 37. e5 {[%clk 00:08:04]} {[%emt 00:00:35]} Bf4
{[%clk 00:09:26]} {[%emt 00:02:37]} 38. Rxd6 {[%clk 00:06:33]} {[%emt
00:01:41]} Rxf3 {[%clk 00:08:42]} {[%emt 00:00:53]} 39. Bc5 {[%clk 00:06:36]}
{[%emt 00:00:06]} g4 {[%clk 00:07:46]} {[%emt 00:01:06]} 40. Rxg6+ {[%clk
00:06:06]} {[%emt 00:00:40]} Ke8 {[%clk 00:07:44]} {[%emt 00:00:12]} 41. Rxg4
{[%clk 00:06:11]} {[%emt 00:00:06]} Bxe5 {[%clk 00:07:42]} {[%emt 00:00:12]} 42.
Re4 {[%clk 00:05:59]} {[%emt 00:00:21]} f6 {[%clk 00:07:33]} {[%emt 00:00:19]}
43. Bd6 {[%clk 00:04:04]} {[%emt 00:02:06]} Rf5 {[%clk 00:07:25]} {[%emt
00:00:18]} 44. Bxb4 {[%clk 00:04:05]} {[%emt 00:00:09]} Kf7 {[%clk 00:06:16]}
{[%emt 00:01:19]} 45. c4 {[%clk 00:03:53]} {[%emt 00:00:22]} Rf1 {[%clk
00:06:14]} {[%emt 00:00:12]} 46. Re1 {[%clk 00:03:54]} {[%emt 00:00:08]} Rf2+
{[%clk 00:06:21]} {[%emt 00:00:05]} 47. Ka3 {[%clk 00:04:00]} {[%emt 00:00:04]}
Bb2+ {[%clk 00:05:53]} {[%emt 00:00:37]} 48. Ka4 {[%clk 00:04:08]} {[%emt
00:00:03]} f5 {[%clk 00:06:01]} {[%emt 00:00:02]} 49. c5 {[%clk 00:04:01]}
{[%emt 00:00:17]} Rc2 {[%clk 00:06:09]} {[%emt 00:00:03]} 50. Kb5 {[%clk
00:03:57]} {[%emt 00:00:13]} f4 {[%clk 00:05:58]} {[%emt 00:00:21]} 51. c6
{[%clk 00:03:34]} {[%emt 00:00:34]} f3 {[%clk 00:05:50]} {[%emt 00:00:17]} 52.
Rf1 {[%clk 00:03:41]} {[%emt 00:00:03]} f2 {[%clk 00:05:51]} {[%emt 00:00:09]}
53. Bc5 {[%clk 00:03:44]} {[%emt 00:00:07]} Bf6 {[%clk 00:04:33]} {[%emt
00:01:28]} 54. Rxf2 {[%clk 00:03:47]} {[%emt 00:00:07]} Rxf2 {[%clk 00:04:03]}
{[%emt 00:00:40]} 55. Bxf2 {[%clk 00:03:51]} {[%emt 00:00:05]} Ke8 {[%clk
00:03:39]} {[%emt 00:00:34]} 56. Kb6 {[%clk 00:03:58]} {[%emt 00:00:05]} Be5
{[%clk 00:03:12]} {[%emt 00:00:37]} 57. Kb7 {[%clk 00:04:05]} {[%emt 00:00:03]}
Kd8 {[%clk 00:03:17]} {[%emt 00:00:05]} 58. Bh4+ {[%clk 00:04:14]} Ke8 {[%clk
00:03:23]} {[%emt 00:00:05]} 59. c7 {[%clk 00:04:22]} {[%emt 00:00:02]} Kd7
{[%clk 00:03:31]} {[%emt 00:00:01]} 60. c8=Q {[%clk 00:04:28]} {[%emt
00:00:04]} 1-0

[Event "Manhemjunioren 2024"]
[Site "Goteborgs Schackcentrum, Vegatan 20, Gothenburg, Sweden"]
[Date "2024.04.06"]
[Round "3.5"]
[White "Bergdahl, Martin"]
[Black "Lappas Lonnermark, Johannes"]
[Result "1/2-1/2"]
[TimeControl "18 minutes + 10 seconds per move from move one."]
[WhiteFideId "1782231"]
[BlackFideId "1773437"]
[WhiteElo "1533"]
[BlackElo "1577"]

1. e4 {[%clk 00:18:18]} {[%emt 00:00:02]} e6 {[%clk 00:18:19]} 2. d4 {[%clk
00:18:24]} {[%emt 00:00:04]} d5 {[%clk 00:18:27]} {[%emt 00:00:02]} 3. exd5
{[%clk 00:18:33]} exd5 {[%clk 00:18:35]} {[%emt 00:00:02]} 4. Nc3 {[%clk
00:18:42]} c6 {[%clk 00:18:40]} {[%emt 00:00:06]} 5. Nf3 {[%clk 00:18:49]}
{[%emt 00:00:02]} Bd6 {[%clk 00:18:48]} {[%emt 00:00:02]} 6. Bd3 {[%clk
00:18:58]} {[%emt 00:00:02]} Nf6 {[%clk 00:18:40]} {[%emt 00:00:18]} 7. O-O
{[%clk 00:19:05]} {[%emt 00:00:02]} O-O {[%clk 00:18:39]} {[%emt 00:00:12]} 8.
Bg5 {[%clk 00:19:13]} {[%emt 00:00:02]} Bg4 {[%clk 00:18:44]} {[%emt 00:00:04]}
9. h3 {[%clk 00:19:22]} {[%emt 00:00:02]} Bh5 {[%clk 00:18:50]} {[%emt
00:00:04]} 10. Be2 {[%clk 00:19:20]} {[%emt 00:00:11]} Bg6 {[%clk 00:18:51]}
{[%emt 00:00:10]} 11. Ne5 {[%clk 00:19:27]} {[%emt 00:00:03]} Nbd7 {[%clk
00:18:38]} {[%emt 00:00:23]} 12. Nxd7 {[%clk 00:19:22]} {[%emt 00:00:15]} Qxd7
{[%clk 00:18:42]} {[%emt 00:00:06]} 13. Bxf6 {[%clk 00:19:30]} {[%emt
00:00:01]} gxf6 {[%clk 00:18:50]} {[%emt 00:00:03]} 14. Bh5 {[%clk 00:19:38]}
{[%emt 00:00:02]} Kg7 {[%clk 00:18:46]} {[%emt 00:00:13]} 15. Bg4 {[%clk
00:19:29]} {[%emt 00:00:19]} Qc7 {[%clk 00:18:49]} {[%emt 00:00:07]} 16. Bh5
{[%clk 00:19:30]} {[%emt 00:00:09]} Rfe8 {[%clk 00:18:34]} {[%emt 00:00:26]} 17.
Qf3 {[%clk 00:19:07]} {[%emt 00:00:31]} Qe7 {[%clk 00:18:19]} {[%emt 00:00:27]}
18. Qg4 {[%clk 00:19:04]} {[%emt 00:00:07]} Qe6 {[%clk 00:18:03]} {[%emt
00:00:32]} 19. Qxe6 {[%clk 00:18:57]} {[%emt 00:00:18]} fxe6 {[%clk 00:17:35]}
{[%emt 00:00:38]} 20. Bxg6 {[%clk 00:18:42]} {[%emt 00:00:25]} hxg6 {[%clk
00:17:41]} {[%emt 00:00:04]} 21. f4 {[%clk 00:18:51]} e5 {[%clk 00:17:07]}
{[%emt 00:00:45]} 22. fxe5 {[%clk 00:18:53]} {[%emt 00:00:08]} fxe5 {[%clk
00:17:14]} {[%emt 00:00:02]} 23. dxe5 {[%clk 00:19:01]} {[%emt 00:00:02]} Rxe5
{[%clk 00:16:13]} {[%emt 00:01:12]} 24. Rae1 {[%clk 00:18:47]} {[%emt
00:00:24]} Rae8 {[%clk 00:16:05]} {[%emt 00:00:18]} 25. Rxe5 {[%clk 00:18:53]}
{[%emt 00:00:04]} Rxe5 {[%clk 00:16:13]} {[%emt 00:00:03]} 26. Rd1 {[%clk
00:17:48]} {[%emt 00:01:14]} Bc5+ {[%clk 00:15:19]} {[%emt 00:01:03]} 27. Kh1
{[%clk 00:17:36]} {[%emt 00:00:23]} Bf2 {[%clk 00:13:34]} {[%emt 00:01:55]} 28.
Kh2 {[%clk 00:16:27]} {[%emt 00:01:19]} g5 {[%clk 00:12:25]} {[%emt 00:01:20]}
29. Rf1 {[%clk 00:15:53]} {[%emt 00:00:42]} Bd4 {[%clk 00:11:53]} {[%emt
00:00:42]} 30. Rf3 {[%clk 00:15:17]} {[%emt 00:00:45]} Re3 {[%clk 00:11:43]}
{[%emt 00:00:20]} 31. Rxe3 {[%clk 00:14:59]} {[%emt 00:00:28]} Bxe3 {[%clk
00:11:50]} {[%emt 00:00:03]} 32. Ne2 {[%clk 00:14:58]} {[%emt 00:00:11]} Kf6
{[%clk 00:11:23]} {[%emt 00:00:38]} 33. g4 {[%clk 00:15:01]} {[%emt 00:00:07]}
Ke5 {[%clk 00:11:11]} {[%emt 00:00:23]} 34. Kg2 {[%clk 00:15:09]} {[%emt
00:00:02]} Ke4 {[%clk 00:09:11]} {[%emt 00:02:10]} 35. Ng3+ {[%clk 00:15:17]}
{[%emt 00:00:02]} Ke5 {[%clk 00:08:36]} {[%emt 00:00:44]} 36. Ne2 {[%clk
00:15:18]} {[%emt 00:00:09]} b5 {[%clk 00:08:03]} {[%emt 00:00:43]} 37. Kf3
{[%clk 00:15:10]} {[%emt 00:00:17]} Bb6 {[%clk 00:07:49]} {[%emt 00:00:25]} 38.
Ng3 {[%clk 00:15:05]} {[%emt 00:00:14]} a5 {[%clk 00:07:46]} {[%emt 00:00:14]}
39. Nf5 {[%clk 00:15:13]} {[%emt 00:00:02]} Bc5 {[%clk 00:07:32]} {[%emt
00:00:24]} 40. Nh6 {[%clk 00:15:03]} {[%emt 00:00:19]} a4 {[%clk 00:06:48]}
{[%emt 00:00:55]} 41. Nf7+ {[%clk 00:15:11]} {[%emt 00:00:02]} Kf6 {[%clk
00:06:56]} {[%emt 00:00:02]} 42. Nd8 {[%clk 00:15:20]} {[%emt 00:00:02]} Ke7
{[%clk 00:06:31]} {[%emt 00:00:34]} 43. Nxc6+ {[%clk 00:15:14]} {[%emt
00:00:17]} Kd6 {[%clk 00:05:13]} {[%emt 00:01:28]} 44. Nd8 {[%clk 00:15:21]}
{[%emt 00:00:03]} Ke7 {[%clk 00:04:39]} {[%emt 00:00:44]} 45. Nc6+ {[%clk
00:14:58]} {[%emt 00:00:33]} Kd6 {[%clk 00:04:40]} {[%emt 00:00:09]} 46. Nd8
{[%clk 00:15:05]} {[%emt 00:00:02]} Ke7 {[%clk 00:04:37]} {[%emt 00:00:14]} 47.
Nc6+ {[%clk 00:15:14]} {[%emt 00:00:01]} Kd6 {[%clk 00:04:43]} {[%emt
00:00:03]} 48. Nd8 {[%clk 00:15:23]} {[%emt 00:00:02]} 1/2-1/2

[Event "Manhemjunioren 2024"]
[Site "Goteborgs Schackcentrum, Vegatan 20, Gothenburg, Sweden"]
[Date "2024.04.06"]
[Round "3.7"]
[White "Sivarama, Saadhvik"]
[Black "Murugaraja, Yogeshwer"]
[Result "0-1"]
[TimeControl "18 minutes + 10 seconds per move from move one."]
[WhiteFideId "1773720"]
[BlackFideId "1779389"]
[WhiteElo "1566"]
[BlackElo "1587"]

1. e4 {[%clk 00:18:17]} {[%emt 00:00:02]} c5 {[%clk 00:18:19]} {[%emt
00:00:01]} 2. Nf3 {[%clk 00:18:25]} {[%emt 00:00:02]} d6 {[%clk 00:18:27]}
{[%emt 00:00:02]} 3. d4 {[%clk 00:18:26]} {[%emt 00:00:08]} cxd4 {[%clk
00:18:35]} {[%emt 00:00:03]} 4. Nxd4 {[%clk 00:18:34]} {[%emt 00:00:03]} Nf6
{[%clk 00:18:43]} {[%emt 00:00:02]} 5. Bd3 {[%clk 00:18:28]} {[%emt 00:00:15]}
a6 {[%clk 00:18:45]} {[%emt 00:00:09]} 6. c4 {[%clk 00:18:17]} {[%emt
00:00:20]} e5 {[%clk 00:18:35]} {[%emt 00:00:19]} 7. Nf3 {[%clk 00:18:20]}
{[%emt 00:00:08]} Be7 {[%clk 00:18:35]} {[%emt 00:00:11]} 8. O-O {[%clk
00:18:21]} {[%emt 00:00:09]} O-O {[%clk 00:18:39]} {[%emt 00:00:05]} 9. Nc3
{[%clk 00:18:11]} {[%emt 00:00:20]} Be6 {[%clk 00:18:35]} {[%emt 00:00:14]} 10.
Nd5 {[%clk 00:17:58]} {[%emt 00:00:23]} Nxd5 {[%clk 00:18:19]} {[%emt
00:00:27]} 11. cxd5 {[%clk 00:17:55]} {[%emt 00:00:12]} Bg4 {[%clk 00:18:03]}
{[%emt 00:00:26]} 12. h3 {[%clk 00:17:58]} {[%emt 00:00:07]} Bh5 {[%clk
00:18:09]} {[%emt 00:00:05]} 13. Be2 {[%clk 00:17:41]} {[%emt 00:00:27]} Nd7
{[%clk 00:17:31]} {[%emt 00:00:48]} 14. Nd2 {[%clk 00:17:34]} {[%emt 00:00:17]}
Bg6 {[%clk 00:17:35]} {[%emt 00:00:06]} 15. Bd3 {[%clk 00:17:08]} {[%emt
00:00:36]} Nf6 {[%clk 00:17:29]} {[%emt 00:00:16]} 16. Re1 {[%clk 00:16:54]}
{[%emt 00:00:24]} Rc8 {[%clk 00:16:52]} {[%emt 00:00:45]} 17. Nf3 {[%clk
00:15:48]} {[%emt 00:01:17]} h6 {[%clk 00:15:55]} {[%emt 00:01:08]} 18. Bd2
{[%clk 00:15:17]} {[%emt 00:00:41]} Qd7 {[%clk 00:14:57]} {[%emt 00:01:07]} 19.
Rb1 {[%clk 00:14:23]} {[%emt 00:01:04]} Rc7 {[%clk 00:13:11]} {[%emt 00:01:56]}
20. b4 {[%clk 00:14:09]} {[%emt 00:00:24]} b5 {[%clk 00:12:59]} {[%emt
00:00:22]} 21. Nh4 {[%clk 00:11:33]} {[%emt 00:02:45]} Bh7 {[%clk 00:12:25]}
{[%emt 00:00:44]} 22. Nf3 {[%clk 00:08:54]} {[%emt 00:02:50]} Bg6 {[%clk
00:12:04]} {[%emt 00:00:31]} 23. Ra1 {[%clk 00:08:29]} {[%emt 00:00:35]} Nh7
{[%clk 00:11:13]} {[%emt 00:01:01]} 24. a4 {[%clk 00:07:55]} {[%emt 00:00:44]}
Rb8 {[%clk 00:08:44]} {[%emt 00:02:39]} 25. axb5 {[%clk 00:07:18]} {[%emt
00:00:47]} axb5 {[%clk 00:08:48]} {[%emt 00:00:06]} 26. Qe2 {[%clk 00:06:32]}
{[%emt 00:00:57]} f5 {[%clk 00:06:46]} {[%emt 00:02:11]} 27. exf5 {[%clk
00:06:02]} {[%emt 00:00:41]} Bxf5 {[%clk 00:06:52]} {[%emt 00:00:04]} 28. Ra5
{[%clk 00:05:48]} {[%emt 00:00:23]} Bxd3 {[%clk 00:06:51]} {[%emt 00:00:10]} 29.
Qxd3 {[%clk 00:05:52]} {[%emt 00:00:07]} Rcb7 {[%clk 00:06:25]} {[%emt
00:00:30]} 30. Rea1 {[%clk 00:05:17]} {[%emt 00:00:51]} Re8 {[%clk 00:04:56]}
{[%emt 00:01:34]} 31. Be3 {[%clk 00:05:01]} {[%emt 00:00:30]} Bd8 {[%clk
00:04:51]} {[%emt 00:00:14]} 32. Ra7 {[%clk 00:04:52]} {[%emt 00:00:19]} e4
{[%clk 00:04:25]} {[%emt 00:00:38]} 33. Rxb7 {[%clk 00:04:21]} {[%emt
00:00:40]} Qxb7 {[%clk 00:04:30]} {[%emt 00:00:05]} 34. Ra7 {[%clk 00:04:14]}
{[%emt 00:00:17]} Qxa7 {[%clk 00:04:19]} {[%emt 00:00:22]} 35. Qxb5 {[%clk
00:03:45]} {[%emt 00:00:35]} Qa1+ {[%clk 00:03:46]} {[%emt 00:00:46]} 36. Kh2
{[%clk 00:03:42]} {[%emt 00:00:12]} Nf6 {[%clk 00:03:43]} {[%emt 00:00:14]} 37.
Bd4 {[%emt 00:00:54]} Qa8 {[%clk 00:03:13]} 38. Bxf6 {[%clk 00:02:55]} {[%emt
00:00:52]} Bxf6 {[%clk 00:03:20]} {[%emt 00:00:03]} 39. Nd2 {[%clk 00:02:41]}
{[%emt 00:00:24]} e3 {[%clk 00:02:55]} {[%emt 00:00:36]} 40. fxe3 {[%clk
00:02:30]} {[%emt 00:00:21]} Rxe3 {[%clk 00:03:01]} {[%emt 00:00:03]} 41. Nf3
{[%clk 00:01:53]} {[%emt 00:00:47]} Qe8 {[%clk 00:02:33]} {[%emt 00:00:38]} 42.
Qc6 {[%clk 00:00:45]} {[%emt 00:01:20]} Be5+ {[%clk 00:01:39]} {[%emt
00:01:03]} 43. Kg1 {[%clk 00:00:24]} {[%emt 00:00:31]} Bg3 {[%clk 00:00:46]}
{[%emt 00:01:02]} 0-1

[Event "Manhemjunioren 2024"]
[Site "Goteborgs Schackcentrum, Vegatan 20, Gothenburg, Sweden"]
[Date "2024.04.06"]
[Round "3.8"]
[White "Holma, Tim"]
[Black "Hansson, Isabelle"]
[Result "0-1"]
[TimeControl "18 minutes + 10 seconds per move from move one."]
[WhiteFideId "1785850"]
[BlackFideId "1773593"]
[WhiteElo "1430"]
[BlackElo "1414"]

1. e4 {[%clk 00:18:17]} {[%emt 00:00:02]} e5 {[%clk 00:18:19]} {[%emt
00:00:02]} 2. Nf3 {[%clk 00:18:26]} {[%emt 00:00:02]} Nc6 {[%clk 00:18:23]}
{[%emt 00:00:06]} 3. Bc4 {[%clk 00:18:31]} {[%emt 00:00:04]} Nf6 {[%clk
00:18:19]} {[%emt 00:00:14]} 4. Nc3 {[%clk 00:18:38]} {[%emt 00:00:03]} Bc5
{[%clk 00:18:06]} {[%emt 00:00:23]} 5. d3 {[%clk 00:18:27]} {[%emt 00:00:22]}
d6 {[%clk 00:17:29]} {[%emt 00:00:47]} 6. O-O {[%clk 00:18:26]} {[%emt
00:00:10]} Bg4 {[%clk 00:17:02]} {[%emt 00:00:37]} 7. h3 {[%clk 00:18:17]}
{[%emt 00:00:19]} Bh5 {[%clk 00:16:49]} {[%emt 00:00:23]} 8. Be3 {[%clk
00:18:08]} {[%emt 00:00:19]} O-O {[%clk 00:15:36]} {[%emt 00:01:23]} 9. Qe2
{[%clk 00:16:25]} {[%emt 00:01:53]} Bd4 {[%clk 00:12:55]} {[%emt 00:02:52]} 10.
Bxd4 {[%clk 00:15:05]} {[%emt 00:01:28]} Nxd4 {[%clk 00:13:02]} {[%emt
00:00:04]} 11. Qd1 {[%clk 00:14:58]} {[%emt 00:00:17]} Nxf3+ {[%clk 00:12:35]}
{[%emt 00:00:38]} 12. gxf3 {[%clk 00:15:00]} {[%emt 00:00:07]} Qd7 {[%clk
00:12:36]} {[%emt 00:00:09]} 13. Kh2 {[%clk 00:13:55]} {[%emt 00:01:14]} c6
{[%clk 00:11:57]} {[%emt 00:00:51]} 14. Kg2 {[%clk 00:11:13]} {[%emt 00:02:51]}
d5 {[%clk 00:11:53]} {[%emt 00:00:15]} 15. exd5 {[%clk 00:11:12]} {[%emt
00:00:10]} cxd5 {[%clk 00:12:00]} {[%emt 00:00:03]} 16. Bb5 {[%clk 00:10:44]}
{[%emt 00:00:37]} Qf5 {[%clk 00:11:51]} {[%emt 00:00:19]} 17. d4 {[%clk
00:09:14]} {[%emt 00:01:41]} e4 {[%clk 00:10:38]} {[%emt 00:01:23]} 18. fxe4
{[%clk 00:08:47]} {[%emt 00:00:36]} Qg5+ {[%clk 00:10:21]} {[%emt 00:00:27]} 19.
Kh2 {[%clk 00:08:15]} {[%emt 00:00:41]} Bxd1 {[%clk 00:10:28]} {[%emt
00:00:04]} 20. Raxd1 {[%clk 00:08:22]} {[%emt 00:00:02]} Qf4+ {[%clk 00:10:28]}
{[%emt 00:00:11]} 21. Kh1 {[%clk 00:08:15]} {[%emt 00:00:17]} Qf3+ {[%clk
00:09:26]} {[%emt 00:01:12]} 22. Kh2 {[%clk 00:08:17]} {[%emt 00:00:08]} dxe4
{[%clk 00:09:20]} {[%emt 00:00:16]} 23. Be2 {[%clk 00:07:33]} {[%emt 00:00:55]}
Qf4+ {[%clk 00:09:14]} {[%emt 00:00:15]} 24. Kg2 {[%clk 00:07:21]} {[%emt
00:00:21]} Rfe8 {[%clk 00:08:41]} {[%emt 00:00:44]} 25. Rfe1 {[%clk 00:06:04]}
{[%emt 00:01:27]} e3 {[%clk 00:08:41]} {[%emt 00:00:10]} 26. Bf3 {[%clk
00:04:52]} {[%emt 00:01:23]} Qg5+ {[%clk 00:07:27]} {[%emt 00:01:24]} 27. Kf1
{[%clk 00:04:37]} {[%emt 00:00:25]} Qh4 {[%clk 00:06:29]} {[%emt 00:01:07]} 28.
Bg2 {[%clk 00:03:54]} {[%emt 00:00:53]} Qxf2# {[%clk 00:06:20]} {[%emt
00:00:19]} 0-1

[Event "Manhemjunioren 2024"]
[Site "Goteborgs Schackcentrum, Vegatan 20, Gothenburg, Sweden"]
[Date "2024.04.06"]
[Round "4.1"]
[White "Yang, Mandi"]
[Black "Norberg, Arild"]
[Result "1-0"]
[TimeControl "18 minutes + 10 seconds per move from move one."]
[WhiteFideId "1774778"]
[BlackFideId "1774484"]
[WhiteElo "1738"]
[BlackElo "1683"]

1. e4 {[%clk 00:18:19]} e5 {[%clk 00:18:15]} {[%emt 00:00:06]} 2. Nf3 {[%clk
00:18:28]} {[%emt 00:00:01]} Nc6 {[%clk 00:18:20]} {[%emt 00:00:05]} 3. Bc4
{[%clk 00:18:37]} {[%emt 00:00:01]} Bc5 {[%clk 00:18:25]} {[%emt 00:00:05]} 4.
c3 {[%clk 00:18:45]} {[%emt 00:00:02]} d6 {[%clk 00:18:29]} {[%emt 00:00:05]} 5.
d4 {[%clk 00:18:54]} {[%emt 00:00:03]} exd4 {[%clk 00:18:36]} {[%emt 00:00:02]}
6. cxd4 {[%clk 00:19:02]} {[%emt 00:00:02]} Bb4+ {[%clk 00:18:44]} {[%emt
00:00:02]} 7. Nc3 {[%clk 00:19:11]} Bg4 {[%clk 00:18:51]} {[%emt 00:00:03]} 8.
Be3 {[%clk 00:18:19]} {[%emt 00:01:03]} Nge7 {[%clk 00:18:51]} {[%emt
00:00:09]} 9. O-O {[%clk 00:18:13]} {[%emt 00:00:16]} h6 {[%clk 00:18:52]}
{[%emt 00:00:09]} 10. h3 {[%clk 00:18:19]} {[%emt 00:00:04]} Bh5 {[%clk
00:18:59]} {[%emt 00:00:03]} 11. Nd5 {[%clk 00:17:04]} {[%emt 00:01:25]} O-O
{[%clk 00:18:35]} {[%emt 00:00:33]} 12. Nf4 {[%clk 00:17:08]} {[%emt 00:00:07]}
Bg6 {[%clk 00:18:32]} {[%emt 00:00:13]} 13. Nxg6 {[%clk 00:17:07]} {[%emt
00:00:10]} Nxg6 {[%clk 00:18:40]} {[%emt 00:00:02]} 14. Qc2 {[%clk 00:16:33]}
{[%emt 00:00:45]} Nce7 {[%clk 00:18:33]} {[%emt 00:00:16]} 15. Rac1 {[%clk
00:16:20]} {[%emt 00:00:23]} c6 {[%clk 00:18:34]} {[%emt 00:00:10]} 16. Bd3
{[%clk 00:15:36]} {[%emt 00:00:53]} Re8 {[%clk 00:17:47]} {[%emt 00:00:57]} 17.
a3 {[%clk 00:15:00]} {[%emt 00:00:48]} Ba5 {[%clk 00:17:52]} {[%emt 00:00:05]}
18. b4 {[%clk 00:15:05]} {[%emt 00:00:05]} Bb6 {[%clk 00:17:57]} {[%emt
00:00:05]} 19. Rfd1 {[%clk 00:14:17]} {[%emt 00:00:57]} d5 {[%clk 00:18:00]}
{[%emt 00:00:06]} 20. e5 {[%clk 00:14:20]} {[%emt 00:00:07]} a5 {[%clk
00:17:57]} {[%emt 00:00:14]} 21. e6 {[%clk 00:09:50]} {[%emt 00:04:41]} Qd6
{[%clk 00:16:01]} {[%emt 00:02:05]} 22. exf7+ {[%clk 00:09:54]} {[%emt
00:00:06]} Kxf7 {[%clk 00:16:09]} {[%emt 00:00:01]} 23. Bxg6+ {[%clk 00:07:32]}
{[%emt 00:02:33]} Nxg6 {[%clk 00:16:00]} {[%emt 00:00:19]} 24. Ne5+ {[%clk
00:07:40]} {[%emt 00:00:02]} Nxe5 {[%clk 00:15:21]} {[%emt 00:00:48]} 25. dxe5
{[%clk 00:07:49]} {[%emt 00:00:02]} Qd8 {[%clk 00:14:54]} {[%emt 00:00:34]} 26.
Qf5+ {[%clk 00:07:07]} {[%emt 00:00:55]} Kg8 {[%clk 00:14:39]} {[%emt
00:00:24]} 27. Bxh6 {[%clk 00:04:38]} {[%emt 00:02:39]} gxh6 {[%clk 00:14:08]}
{[%emt 00:00:41]} 28. Qg6+ {[%clk 00:01:15]} {[%emt 00:03:34]} Kf8 {[%clk
00:13:16]} {[%emt 00:01:02]} 29. Rd3 {[%clk 00:00:23]} {[%emt 00:01:03]} Qg5
{[%clk 00:12:51]} {[%emt 00:00:35]} 30. Rf3+ {[%clk 00:00:26]} {[%emt
00:00:06]} Ke7 {[%clk 00:12:59]} {[%emt 00:00:01]} 31. Qd6# {[%clk 00:00:33]}
{[%emt 00:00:13]} 1-0